[Event "44th Chess Olympiad Open 2022"]
[Site "Chennai"]
[Date "2022.08.05"]
[Round "7.30"]
[White "Hossain, Enamul"]
[Black "Grandelius, Nils"]
[Result "1-0"]
[ECO "B90"]
[WhiteElo "2377"]
[BlackElo "2655"]
[Annotator "TA"]
[PlyCount "109"]
[EventDate "2022.07.29"]
[EventType "team-tourn"]
[EventCountry "IND"]
[SourceTitle "playchess.com"]
[Source "ChessBase"]
[SourceQuality "1"]
[WhiteTeam "Bangladesh"]
[BlackTeam "Sweden"]
[WhiteTeamCountry "BAN"]
[BlackTeamCountry "SWE"]
[TimeControl "40/5400+30:1800+30"]

{[%evp 21,109,16,32,18,10,18,16,26,16,4,16,0,46,43,54,38,47,0,0,-3,24,19,24,29,33,29,58,53,79,0,0,0,0,0,0,0,0,14,62,39,348,353,477,478,489,485,487,467,459,474,466,463,444,395,416,406,406,412,474,359,617,617,609,603,584,560,620,591,643,647,726,718,681,608,615,551,950,943,885,887,817,770,1861,1791,29975,29976,29976,6415,6187,6107]} 1. e4 {[%emt 0:00:24]} c5 {[%emt 0:00:24]} 2. Nf3 {[%emt 0:00:11]} d6 {[%emt 0:00:06]} 3. d4 {[%emt 0:00:11]} cxd4 {[%emt 0:00:14]} 4. Nxd4 {[%emt 0:00:09]} Nf6 {[%emt 0:00:04]} 5. Nc3 {[%emt 0:00:13]} a6 {[%emt 0:00:08]} 6. f3 {[%emt 0:00:47]} e5 {[%emt 0:02:25]} 7. Nb3 {[%emt 0:00:09]} Be6 {[%emt 0:00:43]} 8. Be3 {[%emt 0:00:14]} h5 {[%emt 0:00:23]} 9. Qd2 {[%emt 0:01:45]} Nbd7 {[%emt 0:00:51]} 10. O-O-O {[%emt 0:00:59]} Be7 {[%emt 0:00:20]} 11. Kb1 {[%emt 0:00:47]} Rc8 {[%emt 0:02:22] is more profitable than 11...b5 at the moment.} 12. Bd3 {[%emt 0:03:48] B90: Sicilian Najdorf: Unusual White 6th moves, 6 Be3 Ng4 and 6 Be3 e5.} b5 {[%emt 0:01:55]} 13. h3 {[%emt 0:05:07]} h4 {[%emt 0:01:18]} 14. f4 {[%emt 0:01:08] The position is equal.} Qc7 {[%emt 0:01:25]} 15. Rhe1 {[%emt 0:00:41]} O-O $1 {[%emt 0:09:29]} 16. a3 {[%emt 0:16:10] [#]} exf4 $146 {[%emt 0:13:52]} (16... Nc5 $11) ({Predecessor:} 16... Qb7) 17. Bxf4 $14 {[%emt 0:00:00]} Ne5 {[%emt 0:00:04]} 18. Nd4 {[%emt 0:00:00]} Qb7 {[%emt 0:20:50]} 19. Nd5 {[%emt 0:13:11]} (19. Bg5 $14) 19... Nxd5 $11 {[%emt 0:00:00]} 20. exd5 {[%emt 0:00:42]} Qxd5 {[%emt 0:04:43] ( -> ...Qa2+)} 21. Nxe6 {[%emt 0:00:23]} Qxe6 {[%emt 0:00:06]} (21... fxe6 $2 22. Bxe5 dxe5 23. Qe2 $18) 22. Be4 {[%emt 0:12:34]} Bf6 {[%emt 0:06:19]} 23. Qa5 {[%emt 0:09:19]} ({Don't play} 23. Qxd6 Qxd6 24. Rxd6 Nc4 $11) 23... Nc4 {[%emt 0:06:45]} 24. Qxa6 {[%emt 0:00:27][%cal Oe4h7]} Qd7 {[%emt 0:04:48]} 25. Bc1 {[%emt 0:02:41] This bishop pair is nice.} (25. b3 $16 Qc7 26. bxc4 Qxc4 27. Qxd6) 25... Rc7 {[%emt 0:02:19]} 26. Bd5 {[%emt 0:04:29]} Qf5 {[%emt 0:05:54][%cal Oc4e3] Strongly threatening ...Ne3!} 27. Re2 {[%emt 0:03:30][%cal Be1e2,Be2f2,Bf2f7][%mdl 32] Inhibits Ne3.} Rb8 $1 {[%emt 0:02:47]} 28. Ka2 {[%emt 0:11:40]} Be5 {[%emt 0:04:10]} 29. c3 {[%emt 0:03:09]} Qd7 {[%emt 0:06:14]} (29... g6 $11) 30. Rf2 $36 {[%emt 0:01:58][%mdl 2048] Black is under pressure.} Qd8 $2 {[%emt 0:01:35][%mdl 8192] [#] Loses the game.} (30... Qe8 $14) 31. Rxf7 $1 $18 {[%emt 0:04:10][%mdl 512]} Rxf7 {[%emt 0:02:46]} (31... Kh7 32. Bg5) 32. Qa7 {[%emt 0:00:03][%mdl 64] Inhibits Qc7. Pin} Qf8 {[%emt 0:00:33][%cal Oc4b6] White must now prevent ...Nb6!} 33. Rf1 {[%emt 0:00:51][%cal Rf1f7][%mdl 64] Pin} ({Less strong is} 33. Bxf7+ Qxf7 34. Qxb8+ Kh7 $18) 33... Bf6 {[%emt 0:00:01][%cal Oc4b6] ...Nb6! is the strong threat.} 34. Bxf7+ {[%emt 0:00:10]} Qxf7 {[%emt 0:00:02]} 35. Qxb8+ {[%emt 0:00:03]} Kh7 {[%emt 0:00:04]} 36. Qxb5 {[%emt 0:03:06]} Nd2+ {[%emt 0:00:24]} 37. Ka1 {[%emt 0:00:26]} Nxf1 {[%emt 0:00:12]} 38. Qxf1 {[%emt 0:00:07][%mdl 4096] Endgame KQB-KQB} Qd5 {[%emt 0:02:07]} 39. Qf3 {[%emt 0:01:20]} Qb3 {[%emt 0:00:35]} 40. Kb1 {[%emt 0:01:28]} d5 $2 {[%emt 0:00:21]} (40... Kg8 41. Qc6 Qd1) 41. Qd3+ {[%emt 0:05:45]} Kg8 {[%emt 0:00:06]} 42. Be3 {[%emt 0:01:02] Prevents d4.} Be7 {[%emt 0:03:37]} 43. Qc2 {[%emt 0:00:58]} Qb5 {[%emt 0:01:16]} 44. a4 {[%emt 0:04:33]} Qf1+ {[%emt 0:03:38]} 45. Ka2 {[%emt 0:00:46]} Bf6 {[%emt 0:01:16]} 46. Qd2 {[%emt 0:01:28]} Qc4+ {[%emt 0:00:49]} 47. b3 {[%emt 0:00:06][%cal Bb2b3,Bb3b4][%mdl 32]} Qe4 {[%emt 0:01:29]} 48. a5 {[%emt 0:01:47]} Qe6 {[%emt 0:01:09]} 49. Bd4 {[%emt 0:01:12]} Qa6 {[%emt 0:00:49]} 50. b4 {[%emt 0:00:53]} Be7 {[%emt 0:00:37]} 51. Qe3 {[%emt 0:01:49]} Bf8 {[%emt 0:02:11]} 52. Kb2 {[%emt 0:04:19] Hoping for Qe5.} Qc4 {[%emt 0:03:05]} 53. Qe6+ {[%emt 0:02:31]} Kh7 {[%emt 0:00:05]} 54. Qg4 {[%emt 0:00:30]} (54. Qf7 $142 Qc8 55. b5 Qb8 56. b6 Qd8 57. Kc2 Qd6 58. b7 Qd8 59. a6) 54... Kg8 {[%emt 0:00:17] [#]} 55. Bxg7 $1 {[%emt 0:02:06][%mdl 512] Weighted Error Value: White=0.12 (very precise) /Black=0.43} 1-0

[Event "44th Chess Olympiad Open 2022"]
[Site "Chennai"]
[Date "2022.08.05"]
[Round "7.31"]
[White "Druska, Juraj"]
[Black "Markov, Mikhail"]
[Result "1/2-1/2"]
[ECO "B50"]
[WhiteElo "2519"]
[BlackElo "2333"]
[Annotator "TA"]
[PlyCount "117"]
[EventDate "2022.07.29"]
[EventType "team-tourn"]
[EventCountry "IND"]
[SourceTitle "playchess.com"]
[Source "ChessBase"]
[SourceQuality "1"]
[WhiteTeam "Slovakia"]
[BlackTeam "Kyrgyzstan"]
[WhiteTeamCountry "SVK"]
[BlackTeamCountry "KGZ"]
[TimeControl "40/5400+30:1800+30"]

{[%evp 9,117,24,33,18,26,33,37,22,23,24,39,-5,15,-18,26,30,48,41,43,4,29,0,55,53,63,48,48,37,91,83,110,52,214,187,200,117,194,208,234,152,144,112,97,111,110,110,104,101,196,183,189,179,179,177,145,0,78,83,83,101,115,0,0,0,0,0,0,0,92,111,112,107,121,109,193,49,357,28,24,0,37,20,20,20,20,0,0,0,0,0,0,0,0,0,0,0,0,0,0,0,0,0,0,0,0,0,0,0,8,0]} 1. e4 {[%emt 0:00:42]} c5 {[%emt 0:00:04]} 2. Nf3 {[%emt 0:00:13]} d6 {[%emt 0:00:05]} 3. Nc3 {[%emt 0:00:12]} a6 {[%emt 0:00:19]} 4. g3 {[%emt 0:00:21]} Nc6 {[%emt 0:03:57]} 5. Bg2 {[%emt 0:00:20]} g6 {[%emt 0:05:31]} 6. d4 {[%emt 0:05:23] With the idea dxc5. B50: Sicilian: 2...d6, Miscellaneous.} cxd4 {[%emt 0:00:00]} (6... Bg4 {with more complications.} 7. dxc5 dxc5 8. Nd5 Bg7) 7. Nxd4 {[%emt 0:00:07]} Bg7 {[%emt 0:00:00]} 8. Nxc6 {[%emt 0:10:19] White is slightly better.} bxc6 {[%emt 0:00:00]} 9. O-O {[%emt 0:00:08][%cal Oe4e5]} Rb8 {[%emt 0:11:02] [#]} 10. Na4 $146 {[%emt 0:04:28]} ({Predecessor:} 10. Qd3 h5 11. h3 Nh6 12. a4 a5 13. Rb1 Qc7 14. b3 Kf8 15. Bd2 Ng8 16. Be3 {1-0 (101) Schwarte,J (2319)-Gulevich,A (2311) ICCF email 2014}) 10... h5 {[%emt 0:00:00]} 11. c4 {[%emt 0:08:50]} h4 {[%emt 0:03:33]} 12. c5 {[%emt 0:01:51]} (12. e5 Bxe5 13. Re1 (13. Bxc6+ Bd7 $17) 13... Qc7 $17) 12... hxg3 {[%emt 0:05:07]} 13. hxg3 {[%emt 0:00:47]} Be5 {[%emt 0:33:03]} 14. cxd6 {[%emt 0:21:05]} exd6 {[%emt 0:00:00]} 15. Be3 {[%emt 0:09:51]} (15. f4 $5 {[%cal Rf4e5]} Bg7 16. Be3 $11) 15... Bh3 {[%emt 0:00:00]} ({Black should play} 15... Nf6 $11) 16. Bxh3 $14 {[%emt 0:05:40]} Rxh3 {[%emt 0:00:00]} 17. Kg2 $1 {[%emt 0:00:07]} Rh5 {[%emt 0:00:00]} 18. Qc2 {[%emt 0:00:51]} Qd7 {[%emt 0:02:41]} (18... c5 $14) 19. Rh1 $36 {[%emt 0:00:07][%mdl 2048] White is on the roll.} Ne7 {[%emt 0:01:32]} 20. Nb6 {[%emt 0:09:20]} (20. Rxh5 $16 gxh5 21. Rh1) 20... Qe6 {[%emt 0:06:31]} (20... Qg4 21. Nc4 $16) (20... Qc7 $1 $14) 21. Rxh5 $18 {[%emt 0:00:53]} gxh5 {[%emt 0:00:12]} 22. Rh1 {[%emt 0:00:07]} (22. f4 $18 Bg7 23. f5) 22... Qg6 {[%emt 0:12:36]} (22... d5 $16) 23. Nc4 {[%emt 0:00:18]} Bg7 {[%emt 0:00:15]} 24. Bf4 {[%emt 0:02:57]} Rd8 {[%emt 0:00:17]} 25. Qe2 {[%emt 0:04:40] White is more active.} Qe6 {[%emt 0:05:17]} 26. Nxd6+ {[%emt 0:10:05]} Rxd6 {[%emt 0:00:05]} 27. Bxd6 {[%emt 0:00:03]} Qxd6 {[%emt 0:00:06]} 28. Qxa6 {[%emt 0:03:29]} Qd2 {[%emt 0:05:42]} (28... Qb4 $16 {was necessary.}) 29. Qa8+ {[%emt 0:00:28]} (29. Rxh5 $6 Bd4 $16) 29... Kd7 {[%emt 0:00:20]} 30. Qb7+ {[%emt 0:00:02]} (30. Rxh5 Qe2 31. Qa7+ (31. Qb7+ Kd8 $11) 31... Ke6 $11) 30... Ke8 {[%emt 0:01:09]} 31. Qb8+ {[%emt 0:01:37]} (31. Rxh5 $6 Qe2 32. Rh4 (32. Qb8+ Kd7 $11) 32... Bxb2 $16) 31... Kd7 {[%emt 0:00:07]} 32. Qb7+ {[%emt 0:00:02]} (32. Rxh5 $6 Qe2 33. Rh4 Ng6 $11) ({White should try} 32. Qb3 $1 {aiming for Rd1.} Ke8 33. Rd1 (33. Rxh5 Bd4 $16) 33... Qxb2 34. Qd3) 32... Ke8 $16 {[%emt 0:00:06]} 33. Rxh5 {[%emt 0:01:00]} Bd4 {[%emt 0:00:31]} 34. Qb8+ {[%emt 0:00:01]} Kd7 {[%emt 0:00:05] [#]} 35. Qb7+ {[%emt 0:00:45]} (35. Qf4 $1 $16 {[%cal Rf4d2]} Qxf4 36. gxf4) 35... Ke8 $11 {[%emt 0:01:35]} 36. Qa8+ {[%emt 0:00:31]} ({Don't do} 36. Qb8+ $6 Kd7 37. Qf4 (37. Qb7+ Kd8 $16) 37... Qxf4 38. gxf4 Bxb2 $16) 36... Kd7 {[%emt 0:00:08]} 37. Qb7+ {[%emt 0:00:04]} Ke8 {[%emt 0:00:01]} 38. Qb8+ {[%emt 0:00:45]} (38. Kh3 $11 Qxf2 39. Qb8+ Kd7 40. Qf4 (40. Rh6 $2 Qf1+ 41. Kh4 Qh1+ 42. Kg4 Qxh6 $19)) 38... Kd7 $16 {[%emt 0:00:01] [#]} 39. Qf4 {[%emt 0:00:34]} Qxf4 {[%emt 0:00:31]} 40. gxf4 {[%emt 0:00:02]} Bxb2 {[%emt 0:00:11]} 41. a4 {[%emt 0:18:59]} f5 {[%emt 0:01:16]} (41... Bd4 $16 42. Rh7 Ke8) 42. Kf3 {[%emt 0:03:33]} (42. exf5 $18 {Hoping for Rh7.} Bc3 43. Rh7) 42... c5 $2 {[%emt 0:02:36][%mdl 8192]} (42... fxe4+ $14 43. Kxe4 Nd5 44. Rh7+ Kd6) 43. exf5 $2 {[%emt 0:01:07]} (43. a5 $18) 43... c4 $11 {[%emt 0:03:51]} 44. Ke4 {[%emt 0:05:01][%cal Of5f6] Threatens to win with f6!} Bf6 {[%emt 0:05:19]} 45. Rh6 {[%emt 0:00:57]} c3 $1 {[%emt 0:00:16] Strongly threatening ...c2. The position is equal.} 46. Kd3 {[%emt 0:00:09]} ({Wrong is} 46. Rxf6 $2 c2 47. Rh6 c1=Q $19) 46... Nd5 {[%emt 0:00:41]} 47. Rxf6 {[%emt 0:00:14]} Nxf6 {[%emt 0:00:29]} 48. Kxc3 {[%emt 0:00:05][%mdl 4096] Endgame KN-KP} Nd5+ {[%emt 0:00:49]} 49. Kd4 {[%emt 0:00:13]} Nb4 {[%emt 0:01:21]} 50. Kc5 {[%emt 0:01:17]} Nc6 {[%emt 0:02:41]} 51. f6 {[%emt 0:02:57]} Na5 {[%emt 0:00:29]} 52. f5 {[%emt 0:01:49]} Ke8 {[%emt 0:00:27]} 53. Kb4 {[%emt 0:00:10]} Nb7 {[%emt 0:00:14]} 54. Kb5 {[%emt 0:00:11]} Kf7 {[%emt 0:00:09]} 55. Kb6 {[%emt 0:00:13]} Nd6 {[%emt 0:00:03]} 56. Kc6 {[%emt 0:00:12]} Nc4 {[%emt 0:00:04]} 57. Kc5 {[%emt 0:00:04]} Na5 {[%emt 0:00:05]} 58. Kb5 {[%emt 0:00:08]} Nb7 {[%emt 0:00:06]} 59. Kb6 {[%emt 0:00:26] Weighted Error Value: White=0.30/Black=0.24 (precise)} 1/2-1/2

[Event "44th Chess Olympiad Open 2022"]
[Site "Chennai"]
[Date "2022.08.05"]
[Round "7.31"]
[White "Ftacnik, Lubomir"]
[Black "Zhakshylykov, Erzhan"]
[Result "0-1"]
[ECO "D37"]
[WhiteElo "2483"]
[BlackElo "2332"]
[Annotator "ChessBase"]
[PlyCount "56"]
[EventDate "2022.07.29"]
[EventType "team-tourn"]
[EventCountry "IND"]
[SourceTitle "playchess.com"]
[Source "ChessBase"]
[SourceQuality "1"]
[WhiteTeam "Slovakia"]
[BlackTeam "Kyrgyzstan"]
[WhiteTeamCountry "SVK"]
[BlackTeamCountry "KGZ"]
[TimeControl "40/5400+30:1800+30"]

1. Nf3 {[%emt 0:00:05]} Nf6 {[%emt 0:00:31]} 2. c4 {[%emt 0:00:07]} e6 {[%emt 0:00:42]} 3. Nc3 {[%emt 0:00:11]} d5 {[%emt 0:00:58]} 4. d4 {[%emt 0:00:59]} Be7 {[%emt 0:03:37]} 5. Bf4 {[%emt 0:01:43]} O-O {[%emt 0:02:18]} 6. e3 {[%emt 0:01:22]} c5 {[%emt 0:08:39]} 7. dxc5 {[%emt 0:00:21]} Bxc5 {[%emt 0:00:09]} 8. a3 {[%emt 0:00:31]} Nc6 {[%emt 0:01:35]} 9. Qc2 {[%emt 0:01:45]} Qa5 {[%emt 0:04:26]} 10. Nd2 {[%emt 0:02:05]} Be7 {[%emt 0:08:57]} 11. Rd1 {[%emt 0:01:08]} a6 {[%emt 0:12:11]} 12. Be2 {[%emt 0:05:03]} Bd7 {[%emt 0:05:03]} 13. g4 {[%emt 0:15:29]} e5 {[%emt 0:10:55]} 14. g5 {[%emt 0:10:11]} exf4 {[%emt 0:02:03]} 15. gxf6 {[%emt 0:00:16]} Bxf6 {[%emt 0:06:17]} 16. Nxd5 {[%emt 0:00:31]} fxe3 {[%emt 0:24:44]} 17. Nxf6+ {[%emt 0:00:18]} gxf6 {[%emt 0:00:01]} 18. Rg1+ {[%emt 0:05:40]} Kh8 {[%emt 0:00:02]} 19. fxe3 {[%emt 0:00:06]} Rae8 {[%emt 0:03:53]} 20. Rg3 {[%emt 0:12:05]} Rg8 {[%emt 0:00:00]} 21. Kf2 {[%emt 0:23:47]} Rxg3 {[%emt 0:00:00]} 22. hxg3 {[%emt 0:00:06]} Qg5 {[%emt 0:00:43]} 23. Nf1 {[%emt 0:02:35]} Bh3 {[%emt 0:00:33]} 24. Qc3 {[%emt 0:02:58]} Ne5 {[%emt 0:02:31]} 25. e4 {[%emt 0:06:22]} Qg6 {[%emt 0:00:35]} 26. Ne3 {[%emt 0:02:29]} Rg8 {[%emt 0:01:11]} 27. g4 {[%emt 0:01:09]} Qg5 {[%emt 0:00:12]} 28. Rh1 {[%emt 0:02:37]} Qh4+ {[%emt 0:00:12]} 0-1

[Event "44th Chess Olympiad Open 2022"]
[Site "Chennai"]
[Date "2022.08.05"]
[Round "7.31"]
[White "Tologontegin, Semetey"]
[Black "Gazik, Viktor"]
[Result "0-1"]
[ECO "B90"]
[WhiteElo "2378"]
[BlackElo "2544"]
[Annotator "ChessBase"]
[PlyCount "120"]
[EventDate "2022.07.29"]
[EventType "team-tourn"]
[EventCountry "IND"]
[SourceTitle "playchess.com"]
[Source "ChessBase"]
[SourceQuality "1"]
[WhiteTeam "Kyrgyzstan"]
[BlackTeam "Slovakia"]
[WhiteTeamCountry "KGZ"]
[BlackTeamCountry "SVK"]
[TimeControl "40/5400+30:1800+30"]

1. e4 {[%emt 0:00:03]} c5 {[%emt 0:00:05]} 2. Nf3 {[%emt 0:00:07]} d6 {[%emt 0:00:11]} 3. d4 {[%emt 0:00:08]} cxd4 {[%emt 0:00:04]} 4. Nxd4 {[%emt 0:00:07]} Nf6 {[%emt 0:00:04]} 5. Nc3 {[%emt 0:00:08]} a6 {[%emt 0:00:10]} 6. a3 {[%emt 0:00:18]} Nbd7 {[%emt 0:08:03]} 7. Bc4 {[%emt 0:24:25]} Nc5 {[%emt 0:09:02]} 8. f3 {[%emt 0:06:52]} e6 {[%emt 0:04:54]} 9. Ba2 {[%emt 0:00:00]} b5 {[%emt 0:06:49]} 10. Bg5 {[%emt 0:06:28]} Bb7 {[%emt 0:24:36]} 11. Qd2 {[%emt 0:03:58]} Rc8 {[%emt 0:03:16]} 12. O-O-O {[%emt 0:19:41]} Qb6 {[%emt 0:01:04]} 13. Rhe1 {[%emt 0:06:29]} Be7 {[%emt 0:00:25]} 14. e5 {[%emt 0:11:10]} dxe5 {[%emt 0:00:26]} 15. Rxe5 {[%emt 0:11:02]} h6 {[%emt 0:25:41]} 16. Bf4 {[%emt 0:10:32]} Rd8 {[%emt 0:04:36]} 17. Qe1 {[%emt 0:00:00]} b4 {[%emt 0:03:36]} 18. axb4 {[%emt 0:00:00]} Qxb4 {[%emt 0:00:03]} 19. Qe3 {[%emt 0:00:00]} Nfd7 {[%emt 0:02:04]} 20. Rh5 {[%emt 0:00:00]} g5 {[%emt 0:01:09]} 21. Bc7 {[%emt 0:00:00]} Rc8 {[%emt 0:00:01]} 22. Be5 {[%emt 0:00:00]} Nxe5 {[%emt 0:00:38]} 23. Qxe5 {[%emt 0:00:00]} Rh7 {[%emt 0:00:03]} 24. Qe3 {[%emt 0:00:23]} Bf6 {[%emt 0:02:43]} 25. h4 {[%emt 0:00:28]} Na4 {[%emt 0:02:15]} 26. Nxa4 {[%emt 0:00:23]} Qxa4 {[%emt 0:00:01]} 27. Bxe6 {[%emt 0:00:39]} Bxd4 {[%emt 0:00:28]} 28. Qd3 {[%emt 0:00:33]} Rd8 {[%emt 0:01:05]} 29. Kb1 {[%emt 0:00:26]} Qb5 {[%emt 0:00:32]} 30. Qxb5+ {[%emt 0:00:39]} axb5 {[%emt 0:00:06]} 31. Bf5 {[%emt 0:00:07]} Rh8 {[%emt 0:00:28]} 32. Bd3 {[%emt 0:00:48]} Bf6 {[%emt 0:01:18]} 33. hxg5 {[%emt 0:00:11]} Bxg5 {[%emt 0:00:09]} 34. Bxb5+ {[%emt 0:00:40]} Ke7 {[%emt 0:00:02]} 35. Rxd8 {[%emt 0:00:33]} Rxd8 {[%emt 0:00:02]} 36. Bd3 {[%emt 0:00:30]} Ke6 {[%emt 0:00:56]} 37. Rh1 {[%emt 0:00:37]} Ke5 {[%emt 0:00:01]} 38. b4 {[%emt 0:00:33]} Kf4 {[%emt 0:01:29]} 39. Re1 {[%emt 0:00:03]} Rd4 {[%emt 0:00:45]} 40. b5 {[%emt 0:00:00]} Ra4 {[%emt 0:00:38]} 41. Kb2 {[%emt 0:30:24]} Kg3 {[%emt 0:04:42]} 42. Kb3 {[%emt 0:00:00]} Rd4 {[%emt 0:00:04]} 43. Bf1 {[%emt 0:00:00]} Kf2 {[%emt 0:04:27]} 44. Ra1 {[%emt 0:00:00]} Be3 {[%emt 0:00:16]} 45. c4 {[%emt 0:00:00]} Rh4 {[%emt 0:00:33]} 46. Rd1 {[%emt 0:00:00]} Rh1 {[%emt 0:17:55]} 47. Rd7 {[%emt 0:00:00]} Bc8 {[%emt 0:00:46]} 48. Rc7 {[%emt 0:00:00]} Bf5 {[%emt 0:01:49]} 49. Rxf7 {[%emt 0:01:15]} Bb1 {[%emt 0:00:01]} 50. c5 {[%emt 0:00:39]} Rxf1 {[%emt 0:00:05]} 51. b6 {[%emt 0:02:23]} Bxc5 {[%emt 0:04:28]} 52. b7 {[%emt 0:00:05]} Bd3 {[%emt 0:00:50]} 53. Kc3 {[%emt 0:01:08]} Ke2 {[%emt 0:00:01]} 54. Rc7 {[%emt 0:02:00]} Rc1+ {[%emt 0:00:34]} 55. Kb2 {[%emt 0:00:05]} Rb1+ {[%emt 0:00:12]} 56. Ka2 {[%emt 0:00:02]} Be3 {[%emt 0:00:33]} 57. g4 {[%emt 0:01:56]} Rb6 {[%emt 0:00:44]} 58. Re7 {[%emt 0:00:00]} Kxf3 {[%emt 0:00:16]} 59. Rf7+ {[%emt 0:00:27]} Kxg4 {[%emt 0:00:31]} 60. Rg7+ {[%emt 0:00:08]} Bg5 {[%emt 0:00:20]} 0-1

[Event "44th Chess Olympiad Open 2022"]
[Site "Chennai"]
[Date "2022.08.05"]
[Round "7.31"]
[White "Abdyjapar, Asyl"]
[Black "Repka, Christopher"]
[Result "0-1"]
[ECO "A23"]
[WhiteElo "2306"]
[BlackElo "2516"]
[Annotator "TA"]
[PlyCount "104"]
[EventDate "2022.07.29"]
[EventType "team-tourn"]
[EventCountry "IND"]
[SourceTitle "playchess.com"]
[Source "ChessBase"]
[SourceQuality "1"]
[WhiteTeam "Kyrgyzstan"]
[BlackTeam "Slovakia"]
[WhiteTeamCountry "KGZ"]
[BlackTeamCountry "SVK"]
[TimeControl "40/5400+30:1800+30"]

{[%evp 9,104,10,0,0,0,-36,-12,-29,-38,-35,-6,-93,-27,-180,-170,-163,-177,-164,-163,-237,-126,-129,-117,-126,-124,-207,-138,-122,-144,-137,-93,-91,-100,-84,-98,-94,-83,-88,-75,-84,-87,-90,-85,-130,-130,-130,-122,-329,-327,-330,-329,-447,-447,-447,-447,-491,-479,-482,-482,-468,-512,-556,-554,-558,-543,-562,-557,-555,-556,-547,-546,-544,-513,-553,-529,-541,-533,-529,-520,-775,-752,-29960,-29961,-5069,-428,-29958,-29959,-7777,-6207,-29980,-29980,-29980,-29981,-29983,-29982,-29985,-29986]} 1. c4 {[%emt 0:00:09]} e5 {[%emt 0:00:47]} 2. g3 {[%emt 0:00:06]} Nf6 {[%emt 0:00:04]} 3. Bg2 {[%emt 0:00:04]} Bc5 {[%emt 0:00:07]} 4. Nc3 {[%emt 0:00:05]} c6 {[%emt 0:00:12]} 5. Nf3 {[%emt 0:04:23]} e4 {[%emt 0:02:15]} 6. Ng5 {[%emt 0:00:05] A23: English Opening: 1...e5 2 Nc3 Nf6 3 g3 c6.} d5 {[%emt 0:00:33]} 7. d4 {[%emt 0:00:17]} Bb6 {[%emt 0:00:31]} 8. cxd5 {[%emt 0:03:55] The position is equal.} cxd5 {[%emt 0:00:05] [#]} 9. Nh3 $146 {[%emt 0:00:22]} ({Predecessor:} 9. O-O Nc6 10. Be3 O-O 11. Nh3 Re8 12. Rc1 Bg4 13. Nf4 g5 14. Nh3 h6 15. Kh1 {0-1 (37) Badelka,O (2427)-Korchmar,V (2451) Chess.com INT 2020}) 9... Nc6 {[%emt 0:02:02]} 10. Be3 {[%emt 0:01:24]} (10. Bg5 $1 $11 {remains equal.}) 10... Bf5 {[%emt 0:02:53]} ({Black should try} 10... h6 $17 {White must now prevent ...Bf5.} 11. O-O O-O) 11. f3 $2 {[%emt 0:11:37]} (11. Bg5 $1 $11) 11... exf3 $19 {[%emt 0:03:05]} 12. exf3 {[%emt 0:00:00]} Qe7 {[%emt 0:00:04][%csl LRd4,LRe3]} 13. Kf2 {[%emt 0:00:00]} O-O {[%emt 0:00:05]} 14. g4 {[%emt 0:25:34] [#]} (14. Nf4 $142) 14... Bg6 {[%emt 0:16:17]} (14... Rae8 $1 $19 15. Re1 Qb4 $1 16. gxf5 Rxe3 $1 {[%mdl 512]} 17. Rxe3 Bxd4) 15. g5 {[%emt 0:04:56] [#]} Rae8 $1 {[%emt 0:15:33]} 16. Re1 {[%emt 0:00:00]} Nxd4 {[%emt 0:04:55]} 17. Qd2 {[%emt 0:00:00] [#]} (17. Bxd4 $17 Qxe1+ 18. Qxe1 Bxd4+ 19. Kf1 Rxe1+ 20. Rxe1) 17... Qxe3+ $3 {[%emt 0:05:55][%mdl 512]} 18. Rxe3 {[%emt 0:08:52]} Nc2 {[%emt 0:03:49][%mdl 64] Pin} 19. Nd1 {[%emt 0:00:00][%cal Og5f6]} Nh5 {[%emt 0:04:51] Chess con chili. 0x0.001f210a859ddp-1022s more active pieces.} ({Worse is} 19... Nxe3 20. Nxe3 Rxe3 21. Qxe3 Bxe3+ 22. Kxe3 Re8+ 23. Kd2 $17) 20. Rc1 {[%emt 0:03:56]} Nxe3 {[%emt 0:00:18]} ({Don't play} 20... Bxe3+ 21. Nxe3 Nxe3 22. Rc3 Nxg2 23. Kxg2 $14) (20... Rxe3 {is interesting.} 21. Nxe3 Bxe3+ 22. Qxe3 Nxe3 23. Kxe3 Bf5) 21. Nxe3 {[%emt 0:00:27]} Bxe3+ {[%emt 0:00:05]} 22. Qxe3 {[%emt 0:00:04]} Rxe3 {[%emt 0:00:05]} 23. Kxe3 {[%emt 0:00:04]} Re8+ {[%emt 0:00:09]} 24. Kd2 {[%emt 0:04:20]} Bf5 {[%emt 0:00:06]} 25. Rc7 {[%emt 0:00:27]} g6 {[%emt 0:04:23]} 26. Rxb7 {[%emt 0:06:52]} Rc8 $1 {[%emt 0:00:00] ...Rc2+ is the strong threat.} 27. Bf1 {[%emt 0:01:27]} d4 {[%emt 0:03:06]} 28. Ng1 $2 {[%emt 0:06:19]} (28. Rxa7 $17 Rc2+ 29. Ke1) 28... Nf4 {[%emt 0:04:00]} 29. Rb4 {[%emt 0:07:31]} Rc2+ {[%emt 0:00:52]} 30. Ke1 {[%emt 0:00:22]} Rc1+ {[%emt 0:00:37]} 31. Kf2 {[%emt 0:00:09] [#]} Bd3 $1 {[%emt 0:01:40]} 32. Bh3 {[%emt 0:02:51]} Bc4 {[%emt 0:09:30] And now ...Nd3+ would win.} 33. Rb8+ {[%emt 0:02:22]} Kg7 {[%emt 0:00:04]} 34. b3 {[%emt 0:01:33]} Bd5 {[%emt 0:03:20] Threatens to win with ...d3.} 35. Rd8 {[%emt 0:01:46]} d3 {[%emt 0:00:18]} 36. Ke3 {[%emt 0:00:36]} Rxg1 {[%emt 0:01:01]} 37. Kxf4 {[%emt 0:00:08]} d2 {[%emt 0:00:04]} 38. Rxd5 {[%emt 0:00:05]} d1=Q {[%emt 0:00:06]} 39. Rxd1 {[%emt 0:00:04]} Rxd1 {[%emt 0:00:02][%mdl 4096] Endgame KR-KB} 40. Bc8 {[%emt 0:00:33]} Rd2 {[%emt 0:00:11][%csl LRa2,LRh2]} 41. a4 {[%emt 0:30:23]} Rd3 {[%emt 0:30:13]} 42. a5 {[%emt 0:00:23]} Rxb3 {[%emt 0:00:12]} 43. a6 {[%emt 0:00:04]} Kf8 {[%emt 0:01:14]} 44. h4 {[%emt 0:00:30]} Ke7 {[%emt 0:00:04]} 45. Kg4 {[%emt 0:00:05]} Kd8 {[%emt 0:00:31]} 46. Bb7 {[%emt 0:00:12] [#]} Rb4+ {[%emt 0:00:07]} (46... Rxb7 $142 $1 {[%mdl 512]} 47. axb7 Kc7) 47. f4 {[%emt 0:00:03] [#]} (47. Kg3 $19) 47... Rxb7 $1 {[%emt 0:00:08][%mdl 512]} 48. axb7 {[%emt 0:00:05]} Kc7 {[%emt 0:00:05] ( -> ...a5)} 49. f5 {[%emt 0:00:32]} a5 {[%emt 0:00:11][%cal Ba7a5,Ba5a4][%mdl 32] Black mates.} 50. h5 {[%emt 0:00:02]} a4 {[%emt 0:00:08]} 51. hxg6 {[%emt 0:00:12]} hxg6 {[%emt 0:00:05]} 52. fxg6 {[%emt 0:00:03]} fxg6 {[%emt 0:00:12] Weighted Error Value: White=0.80/Black=0.20 (precise)} 0-1